[Event "December 12 Early 2023"]
[Site "https://www.chess.com"]
[Date "2023.12.12"]
[Round "1"]
[White "NovakRatko"]
[Black "Makhnev, Denis"]
[Result "0-1"]
[Board "128"]
[TimeControl "180+1"]
[BlackFideId "13707647"]
[WhiteElo "2370"]
[BlackElo "2670"]
[BlackTeam "KAZ"]
[WhiteClock "0:00:00"]
[BlackClock "0:02:28"]

1. d4 {[%clk 0:02:41]}  d5 {[%clk 0:02:59]} 2. c4 {[%clk 0:02:40]}  c6 {[%clk 0:02:58]} 3. c5 {[%clk 0:02:40]}  e5 {[%clk 0:02:57]} 4. dxe5 {[%clk 0:02:39]}  Bxc5 {[%clk 0:02:56]} 5. Nf3 {[%clk 0:02:37]}  Bg4 {[%clk 0:02:53]} 6. Nc3 {[%clk 0:02:37]}  Nd7 {[%clk 0:02:52]} 7. e3 {[%clk 0:02:37]}  Nxe5 {[%clk 0:02:51]} 8. Be2 {[%clk 0:02:37]}  Bxf3 {[%clk 0:02:49]} 9. Bxf3 {[%clk 0:02:36]}  Nf6 {[%clk 0:02:49]} 10. O-O {[%clk 0:02:28]}  O-O {[%clk 0:02:48]} 11. a3 {[%clk 0:01:49]}  Re8 {[%clk 0:02:43]} 12. b4 {[%clk 0:01:33]}  Bb6 {[%clk 0:02:40]} 13. Bb2 {[%clk 0:01:19]}  Nc4 {[%clk 0:02:39]} 14. Nxd5 {[%clk 0:00:00]}  Nxb2 {[%clk 0:02:28]} 0-1

[Event "December 12 Early 2023"]
[Site "https://www.chess.com"]
[Date "2023.12.12"]
[Round "1"]
[White "Melikhov, Evgeny V."]
[Black "Piesik, Piotr"]
[Result "0-1"]
[Board "130"]
[TimeControl "180+1"]
[WhiteFideId "4122046"]
[BlackFideId "1136194"]
[WhiteElo "2366"]
[BlackElo "2669"]
[WhiteTeam "GRE"]
[BlackTeam "CZE"]
[WhiteClock "0:00:29"]
[BlackClock "0:02:01"]

1. d4 {[%clk 0:03:00]}  c5 {[%clk 0:02:57]} 2. d5 {[%clk 0:03:00]}  e5 {[%clk 0:02:57]} 3. e4 {[%clk 0:02:58]}  d6 {[%clk 0:02:58]} 4. Bb5+ {[%clk 0:02:58]}  Nd7 {[%clk 0:02:58]} 5. a4 {[%clk 0:02:57]}  Be7 {[%clk 0:02:58]} 6. Nc3 {[%clk 0:02:56]}  Bg5 {[%clk 0:02:58]} 7. Nf3 {[%clk 0:02:50]}  Bxc1 {[%clk 0:02:58]} 8. Qxc1 {[%clk 0:02:49]}  Ne7 {[%clk 0:02:59]} 9. O-O {[%clk 0:02:48]}  O-O {[%clk 0:02:59]} 10. h3 {[%clk 0:02:42]}  Ng6 {[%clk 0:02:57]} 11. Re1 {[%clk 0:02:34]}  Nf4 {[%clk 0:02:54]} 12. Bf1 {[%clk 0:02:31]}  Qf6 {[%clk 0:02:53]} 13. Nh2 {[%clk 0:02:24]}  Qg6 {[%clk 0:02:51]} 14. g3 {[%clk 0:02:17]}  Nf6 {[%clk 0:02:49]} 15. h4 {[%clk 0:02:07]}  N6h5 {[%clk 0:02:37]} 16. Re3 {[%clk 0:01:51]}  f5 {[%clk 0:02:34]} 17. exf5 {[%clk 0:01:46]}  Bxf5 {[%clk 0:02:33]} 18. Ne2 {[%clk 0:01:43]}  Nxd5 {[%clk 0:02:26]} 19. Rb3 {[%clk 0:01:30]}  b6 {[%clk 0:02:22]} 20. Raa3 {[%clk 0:01:27]}  Bxc2 {[%clk 0:02:18]} 21. Rf3 {[%clk 0:01:22]}  Be4 {[%clk 0:02:17]} 22. Rxf8+ {[%clk 0:01:12]}  Rxf8 {[%clk 0:02:18]} 23. Qg5 {[%clk 0:01:11]}  Nhf6 {[%clk 0:02:10]} 24. Qxg6 {[%clk 0:01:10]}  Bxg6 {[%clk 0:02:10]} 25. Bh3 {[%clk 0:00:55]}  Nb4 {[%clk 0:02:07]} 26. Be6+ {[%clk 0:00:49]}  Bf7 {[%clk 0:02:07]} 27. Bxf7+ {[%clk 0:00:44]}  Kxf7 {[%clk 0:02:08]} 28. Nf3 {[%clk 0:00:44]}  h6 {[%clk 0:02:06]} 29. Nc3 {[%clk 0:00:38]}  Ke6 {[%clk 0:02:06]} 30. a5 {[%clk 0:00:38]}  Nfd5 {[%clk 0:02:04]} 31. axb6 {[%clk 0:00:37]}  axb6 {[%clk 0:02:03]} 32. Ra7 {[%clk 0:00:29]}  Rxf3 {[%clk 0:02:01]} 0-1

[Event "December 12 Early 2023"]
[Site "https://www.chess.com"]
[Date "2023.12.12"]
[Round "1"]
[White "Gutkin, Ilya"]
[Black "BestStelker"]
[Result "0-1"]
[Board "132"]
[TimeControl "180+1"]
[WhiteFideId "16203470"]
[WhiteElo "2365"]
[BlackElo "2665"]
[WhiteTeam "GER"]
[WhiteClock "0:01:07"]
[BlackClock "0:01:28"]

1. e4 {[%clk 0:03:00]}  e6 {[%clk 0:02:49]} 2. d4 {[%clk 0:03:00]}  d5 {[%clk 0:02:49]} 3. Nc3 {[%clk 0:03:00]}  Bb4 {[%clk 0:02:49]} 4. e5 {[%clk 0:03:01]}  c5 {[%clk 0:02:50]} 5. a3 {[%clk 0:03:00]}  Bxc3+ {[%clk 0:02:50]} 6. bxc3 {[%clk 0:03:01]}  Nc6 {[%clk 0:02:51]} 7. Qg4 {[%clk 0:02:57]}  g6 {[%clk 0:02:50]} 8. Nf3 {[%clk 0:02:40]}  h6 {[%clk 0:02:50]} 9. h4 {[%clk 0:02:39]}  Qa5 {[%clk 0:02:44]} 10. Bd2 {[%clk 0:02:38]}  Qa4 {[%clk 0:02:43]} 11. Be2 {[%clk 0:02:14]}  Qxc2 {[%clk 0:02:33]} 12. O-O {[%clk 0:02:11]}  Qe4 {[%clk 0:02:24]} 13. Nh2 {[%clk 0:02:11]}  cxd4 {[%clk 0:02:10]} 14. Qxe4 {[%clk 0:02:06]}  dxe4 {[%clk 0:02:11]} 15. Bb5 {[%clk 0:01:57]}  Bd7 {[%clk 0:01:53]} 16. Bxc6 {[%clk 0:01:56]}  Bxc6 {[%clk 0:01:54]} 17. cxd4 {[%clk 0:01:56]}  h5 {[%clk 0:01:54]} 18. Bb4 {[%clk 0:01:54]}  O-O-O {[%clk 0:01:47]} 19. Bd6 {[%clk 0:01:45]}  Nh6 {[%clk 0:01:47]} 20. Rfc1 {[%clk 0:01:28]}  Nf5 {[%clk 0:01:44]} 21. Bc5 {[%clk 0:01:28]}  Nxd4 {[%clk 0:01:38]} 22. Rc4 {[%clk 0:01:22]}  Nb3 {[%clk 0:01:28]} 23. Rb1 {[%clk 0:01:07]}  Nd2 {[%clk 0:01:28]} 0-1

[Event "December 12 Early 2023"]
[Site "https://www.chess.com"]
[Date "2023.12.12"]
[Round "1"]
[White "Leiva, Gianmarco"]
[Black "Biernacki, Mark"]
[Result "1-0"]
[Board "135"]
[TimeControl "180+1"]
[WhiteFideId "3804399"]
[BlackFideId "2082322"]
[WhiteElo "2661"]
[BlackElo "2358"]
[WhiteTeam "PER"]
[BlackTeam "USA"]
[WhiteClock "0:00:02"]
[BlackClock "0:00:01"]

1. e4 {[%clk 0:03:00]}  c6 {[%clk 0:02:59]} 2. d4 {[%clk 0:03:00]}  d5 {[%clk 0:03:00]} 3. exd5 {[%clk 0:03:01]}  cxd5 {[%clk 0:03:01]} 4. Bd3 {[%clk 0:03:02]}  Nc6 {[%clk 0:03:00]} 5. c3 {[%clk 0:03:02]}  Nf6 {[%clk 0:03:00]} 6. Bf4 {[%clk 0:03:03]}  g6 {[%clk 0:02:59]} 7. Nd2 {[%clk 0:03:02]}  Bf5 {[%clk 0:03:00]} 8. Bxf5 {[%clk 0:02:50]}  gxf5 {[%clk 0:03:01]} 9. Ne2 {[%clk 0:02:49]}  e6 {[%clk 0:03:01]} 10. Ng3 {[%clk 0:02:49]}  Bd6 {[%clk 0:02:58]} 11. Bxd6 {[%clk 0:02:40]}  Qxd6 {[%clk 0:02:57]} 12. Nh5 {[%clk 0:02:41]}  Nxh5 {[%clk 0:02:17]} 13. Qxh5 {[%clk 0:02:40]}  Qe7 {[%clk 0:02:16]} 14. O-O-O {[%clk 0:02:09]}  O-O-O {[%clk 0:02:14]} 15. Kb1 {[%clk 0:02:09]}  Rhg8 {[%clk 0:02:11]} 16. g3 {[%clk 0:02:08]}  Qf6 {[%clk 0:02:02]} 17. Nf3 {[%clk 0:02:08]}  Rg4 {[%clk 0:02:00]} 18. Rde1 {[%clk 0:01:51]}  Rdg8 {[%clk 0:01:56]} 19. Ne5 {[%clk 0:01:48]}  Nxe5 {[%clk 0:01:40]} 20. dxe5 {[%clk 0:01:49]}  Qg6 {[%clk 0:01:35]} 21. Qxg6 {[%clk 0:01:41]}  fxg6 {[%clk 0:01:26]} 22. f3 {[%clk 0:01:37]}  Rc4 {[%clk 0:01:24]} 23. h4 {[%clk 0:01:33]}  h5 {[%clk 0:01:22]} 24. Re3 {[%clk 0:01:20]}  Kd7 {[%clk 0:01:19]} 25. b3 {[%clk 0:01:19]}  Rc6 {[%clk 0:01:10]} 26. Kc2 {[%clk 0:01:14]}  Ke7 {[%clk 0:01:08]} 27. Kd2 {[%clk 0:01:12]}  Rd8 {[%clk 0:01:04]} 28. Rd3 {[%clk 0:01:13]}  Rf8 {[%clk 0:01:01]} 29. Ke3 {[%clk 0:01:12]}  Rfc8 {[%clk 0:00:59]} 30. Rc1 {[%clk 0:01:11]}  Kf7 {[%clk 0:00:58]} 31. Kf4 {[%clk 0:00:34]}  b5 {[%clk 0:00:56]} 32. Kg5 {[%clk 0:00:33]}  R8c7 {[%clk 0:00:54]} 33. a3 {[%clk 0:00:29]}  a5 {[%clk 0:00:49]} 34. Kh6 {[%clk 0:00:24]}  Rc8 {[%clk 0:00:46]} 35. Kg5 {[%clk 0:00:19]}  R8c7 {[%clk 0:00:45]} 36. Kh6 {[%clk 0:00:13]}  Rc8 {[%clk 0:00:31]} 37. g4 {[%clk 0:00:10]}  hxg4 {[%clk 0:00:28]} 38. fxg4 {[%clk 0:00:11]}  b4 {[%clk 0:00:19]} 39. axb4 {[%clk 0:00:10]}  axb4 {[%clk 0:00:20]} 40. c4 {[%clk 0:00:11]}  R8c7 {[%clk 0:00:12]} 41. h5 {[%clk 0:00:07]}  gxh5 {[%clk 0:00:11]} 42. gxh5 {[%clk 0:00:07]}  Rc8 {[%clk 0:00:04]} 43. Ra1 {[%clk 0:00:04]}  R8c7 {[%clk 0:00:01]} 44. Rg1 {[%clk 0:00:03]}  dxc4 {[%clk 0:00:01]} 45. bxc4 {[%clk 0:00:02]}  Rxc4 {[%clk 0:00:01]} 46. Rg7+ {[%clk 0:00:02]}  Kf8 {[%clk 0:00:01]} 47. Rd8# {[%clk 0:00:02]} 1-0

[Event "December 12 Early 2023"]
[Site "https://www.chess.com"]
[Date "2023.12.12"]
[Round "1"]
[White "Jakubowska, Anna"]
[Black "Smirnov, Alexandr A."]
[Result "0-1"]
[Board "142"]
[TimeControl "180+1"]
[WhiteFideId "1121952"]
[BlackFideId "24104396"]
[WhiteElo "2352"]
[BlackElo "2645"]
[WhiteTeam "POL"]
[BlackTeam "RUS"]
[WhiteClock "0:00:09"]
[BlackClock "0:01:00"]

1. e4 {[%clk 0:03:00]}  c5 {[%clk 0:02:59]} 2. Nc3 {[%clk 0:02:59]}  Nc6 {[%clk 0:02:59]} 3. g3 {[%clk 0:02:59]}  g6 {[%clk 0:02:58]} 4. Bg2 {[%clk 0:03:00]}  Bg7 {[%clk 0:02:59]} 5. d3 {[%clk 0:02:59]}  Nf6 {[%clk 0:02:58]} 6. f4 {[%clk 0:02:55]}  d6 {[%clk 0:02:58]} 7. h3 {[%clk 0:02:54]}  O-O {[%clk 0:02:58]} 8. Nf3 {[%clk 0:02:54]}  Rb8 {[%clk 0:02:57]} 9. O-O {[%clk 0:02:54]}  b5 {[%clk 0:02:57]} 10. Be3 {[%clk 0:02:51]}  b4 {[%clk 0:02:57]} 11. Ne2 {[%clk 0:02:51]}  a5 {[%clk 0:02:57]} 12. g4 {[%clk 0:02:47]}  e6 {[%clk 0:02:56]} 13. Qd2 {[%clk 0:02:44]}  Nd7 {[%clk 0:02:55]} 14. Rab1 {[%clk 0:02:42]}  Bb7 {[%clk 0:02:48]} 15. h4 {[%clk 0:02:40]}  f5 {[%clk 0:02:44]} 16. g5 {[%clk 0:02:30]}  e5 {[%clk 0:02:38]} 17. exf5 {[%clk 0:02:29]}  Rxf5 {[%clk 0:02:39]} 18. Ng3 {[%clk 0:02:24]}  Rf7 {[%clk 0:02:36]} 19. h5 {[%clk 0:02:17]}  Qe7 {[%clk 0:02:24]} 20. Nh4 {[%clk 0:02:09]}  exf4 {[%clk 0:02:20]} 21. Bxf4 {[%clk 0:02:08]}  Nce5 {[%clk 0:02:19]} 22. Bxb7 {[%clk 0:01:57]}  Rxb7 {[%clk 0:02:20]} 23. hxg6 {[%clk 0:01:50]}  hxg6 {[%clk 0:02:16]} 24. Qg2 {[%clk 0:01:49]}  Rb8 {[%clk 0:02:11]} 25. Ne4 {[%clk 0:01:45]}  Rbf8 {[%clk 0:02:02]} 26. Bd2 {[%clk 0:01:36]}  d5 {[%clk 0:01:51]} 27. Nf6+ {[%clk 0:01:23]}  Nxf6 {[%clk 0:01:47]} 28. gxf6 {[%clk 0:01:22]}  Rxf6 {[%clk 0:01:48]} 29. Qxd5+ {[%clk 0:01:17]}  Kh7 {[%clk 0:01:44]} 30. Qh1 {[%clk 0:01:16]}  Kg8 {[%clk 0:01:38]} 31. Qd5+ {[%clk 0:01:14]}  Qf7 {[%clk 0:01:28]} 32. Qxf7+ {[%clk 0:01:10]}  R8xf7 {[%clk 0:01:28]} 33. Rxf6 {[%clk 0:01:09]}  Bxf6 {[%clk 0:01:26]} 34. Re1 {[%clk 0:00:59]}  Re7 {[%clk 0:01:22]} 35. Rxe5 {[%clk 0:00:53]}  Bxe5 {[%clk 0:01:20]} 36. c3 {[%clk 0:00:44]}  bxc3 {[%clk 0:01:19]} 37. bxc3 {[%clk 0:00:45]}  Kg7 {[%clk 0:01:18]} 38. Kf1 {[%clk 0:00:43]}  Bf6 {[%clk 0:01:14]} 39. Nf3 {[%clk 0:00:42]}  a4 {[%clk 0:01:12]} 40. Kf2 {[%clk 0:00:41]}  Rb7 {[%clk 0:01:12]} 41. d4 {[%clk 0:00:29]}  cxd4 {[%clk 0:01:11]} 42. cxd4 {[%clk 0:00:28]}  Rb2 {[%clk 0:01:11]} 43. Ke3 {[%clk 0:00:28]}  Rxa2 {[%clk 0:01:11]} 44. d5 {[%clk 0:00:29]}  Ra3+ {[%clk 0:01:10]} 45. Ke4 {[%clk 0:00:28]}  Rb3 {[%clk 0:01:07]} 46. d6 {[%clk 0:00:28]}  a3 {[%clk 0:01:06]} 47. d7 {[%clk 0:00:28]}  a2 {[%clk 0:01:04]} 48. Bg5 {[%clk 0:00:17]}  Bxg5 {[%clk 0:01:01]} 49. Nxg5 {[%clk 0:00:17]}  Rb8 {[%clk 0:01:00]} 50. Ne6+ {[%clk 0:00:09]}  Kf6 {[%clk 0:01:00]} 0-1

[Event "December 12 Early 2023"]
[Site "https://www.chess.com"]
[Date "2023.12.12"]
[Round "1"]
[White "Thorfinnsson, Bjorn"]
[Black "Buscar, Michael"]
[Result "1-0"]
[Board "147"]
[TimeControl "180+1"]
[WhiteFideId "2300982"]
[BlackFideId "2603616"]
[WhiteElo "2631"]
[BlackElo "2344"]
[WhiteTeam "ISL"]
[BlackTeam "CAN"]
[WhiteClock "0:01:42"]
[BlackClock "0:01:18"]

1. d4 {[%clk 0:02:58]}  Nf6 {[%clk 0:02:57]} 2. Nf3 {[%clk 0:02:59]}  e6 {[%clk 0:02:56]} 3. Bg5 {[%clk 0:02:59]}  c5 {[%clk 0:02:55]} 4. e3 {[%clk 0:02:59]}  cxd4 {[%clk 0:02:55]} 5. exd4 {[%clk 0:02:59]}  b6 {[%clk 0:02:54]} 6. c3 {[%clk 0:02:59]}  Bb7 {[%clk 0:02:54]} 7. Nbd2 {[%clk 0:02:59]}  Be7 {[%clk 0:02:55]} 8. Bd3 {[%clk 0:02:59]}  d6 {[%clk 0:02:54]} 9. h3 {[%clk 0:02:59]}  Nbd7 {[%clk 0:02:55]} 10. Bf4 {[%clk 0:02:57]}  Nf8 {[%clk 0:02:48]} 11. O-O {[%clk 0:02:56]}  Ng6 {[%clk 0:02:48]} 12. Bh2 {[%clk 0:02:56]}  O-O {[%clk 0:02:46]} 13. Re1 {[%clk 0:02:55]}  Qd7 {[%clk 0:02:28]} 14. a4 {[%clk 0:02:53]}  a6 {[%clk 0:02:27]} 15. Qb3 {[%clk 0:02:44]}  Qc6 {[%clk 0:02:27]} 16. Rac1 {[%clk 0:02:33]}  Bd8 {[%clk 0:02:18]} 17. c4 {[%clk 0:02:24]}  Bc7 {[%clk 0:02:18]} 18. d5 {[%clk 0:02:20]}  Qd7 {[%clk 0:02:08]} 19. dxe6 {[%clk 0:02:11]}  fxe6 {[%clk 0:02:08]} 20. Qc2 {[%clk 0:02:05]}  Qf7 {[%clk 0:01:55]} 21. Ng5 {[%clk 0:02:03]}  Qe8 {[%clk 0:01:54]} 22. Rxe6 {[%clk 0:02:00]}  Qd7 {[%clk 0:01:51]} 23. Bxg6 {[%clk 0:02:00]}  hxg6 {[%clk 0:01:51]} 24. Qxg6 {[%clk 0:02:00]}  Rae8 {[%clk 0:01:42]} 25. Rxf6 {[%clk 0:01:56]}  Rxf6 {[%clk 0:01:42]} 26. Qh7+ {[%clk 0:01:57]}  Kf8 {[%clk 0:01:41]} 27. Qh8+ {[%clk 0:01:57]}  Ke7 {[%clk 0:01:40]} 28. Qxg7+ {[%clk 0:01:58]}  Kd8 {[%clk 0:01:37]} 29. Qxf6+ {[%clk 0:01:58]}  Kc8 {[%clk 0:01:38]} 30. Bg3 {[%clk 0:01:49]}  Qc6 {[%clk 0:01:32]} 31. Ndf3 {[%clk 0:01:46]}  Kb8 {[%clk 0:01:18]} 32. Ne6 {[%clk 0:01:42]} 1-0

[Event "December 12 Early 2023"]
[Site "https://www.chess.com"]
[Date "2023.12.12"]
[Round "1"]
[White "Harriott, Tyrell"]
[Black "Rojas Alarcon, Julian Antonio"]
[Result "0-1"]
[Board "148"]
[TimeControl "180+1"]
[WhiteFideId "2086484"]
[BlackFideId "5107407"]
[WhiteElo "2344"]
[BlackElo "2631"]
[WhiteTeam "USA"]
[BlackTeam "MEX"]
[WhiteClock "0:00:37"]
[BlackClock "0:01:38"]

1. d4 {[%clk 0:03:00]}  Nf6 {[%clk 0:02:56]} 2. e3 {[%clk 0:03:00]}  g6 {[%clk 0:02:56]} 3. Bd3 {[%clk 0:03:00]}  Bg7 {[%clk 0:02:57]} 4. f4 {[%clk 0:03:00]}  d6 {[%clk 0:02:57]} 5. Nf3 {[%clk 0:02:59]}  Nc6 {[%clk 0:02:58]} 6. c3 {[%clk 0:02:58]}  e5 {[%clk 0:02:58]} 7. Bc2 {[%clk 0:02:54]}  Qe7 {[%clk 0:02:56]} 8. O-O {[%clk 0:02:54]}  O-O {[%clk 0:02:56]} 9. f5 {[%clk 0:02:43]}  e4 {[%clk 0:02:45]} 10. Nh4 {[%clk 0:02:38]}  Nd5 {[%clk 0:02:44]} 11. g3 {[%clk 0:02:33]}  g5 {[%clk 0:02:39]} 12. Ng2 {[%clk 0:02:32]}  h6 {[%clk 0:02:38]} 13. Qg4 {[%clk 0:02:24]}  Nf6 {[%clk 0:02:37]} 14. Qe2 {[%clk 0:02:22]}  a5 {[%clk 0:02:34]} 15. Nd2 {[%clk 0:02:20]}  b6 {[%clk 0:02:34]} 16. b3 {[%clk 0:02:11]}  d5 {[%clk 0:02:34]} 17. c4 {[%clk 0:02:07]}  Ba6 {[%clk 0:02:31]} 18. a4 {[%clk 0:02:02]}  Nb4 {[%clk 0:02:26]} 19. Ba3 {[%clk 0:01:59]}  c5 {[%clk 0:02:26]} 20. Bxb4 {[%clk 0:01:56]}  axb4 {[%clk 0:02:27]} 21. Rad1 {[%clk 0:01:46]}  Rac8 {[%clk 0:02:23]} 22. h4 {[%clk 0:01:39]}  Rfd8 {[%clk 0:02:18]} 23. hxg5 {[%clk 0:01:39]}  hxg5 {[%clk 0:02:19]} 24. Rfe1 {[%clk 0:01:28]}  Qd6 {[%clk 0:02:13]} 25. Qf2 {[%clk 0:01:25]}  Ng4 {[%clk 0:02:10]} 26. Qe2 {[%clk 0:01:19]}  Qxg3 {[%clk 0:02:09]} 27. Nf1 {[%clk 0:01:19]}  Qf3 {[%clk 0:02:04]} 28. dxc5 {[%clk 0:01:14]}  bxc5 {[%clk 0:01:46]} 29. Nh2 {[%clk 0:01:11]}  Qxe2 {[%clk 0:01:41]} 30. Rxe2 {[%clk 0:01:09]}  Nxh2 {[%clk 0:01:42]} 31. Kxh2 {[%clk 0:01:06]}  dxc4 {[%clk 0:01:43]} 32. Red2 {[%clk 0:00:55]}  Rxd2 {[%clk 0:01:41]} 33. Rxd2 {[%clk 0:00:56]}  cxb3 {[%clk 0:01:42]} 34. Bxe4 {[%clk 0:00:55]}  c4 {[%clk 0:01:42]} 35. Rd6 {[%clk 0:00:49]}  Be5+ {[%clk 0:01:41]} 36. Kh3 {[%clk 0:00:48]}  Bxd6 {[%clk 0:01:41]} 37. Kg4 {[%clk 0:00:48]}  c3 {[%clk 0:01:38]} 38. Kxg5 {[%clk 0:00:47]}  c2 {[%clk 0:01:38]} 39. Nh4 {[%clk 0:00:43]}  c1=Q {[%clk 0:01:38]} 40. f6 {[%clk 0:00:43]}  Qxe3+ {[%clk 0:01:38]} 41. Kf5 {[%clk 0:00:37]}  Qf4# {[%clk 0:01:38]} 0-1

[Event "December 12 Early 2023"]
[Site "https://www.chess.com"]
[Date "2023.12.12"]
[Round "1"]
[White "Kokoszczynski, Jan"]
[Black "Evdokimov, Alexey"]
[Result "1-0"]
[Board "149"]
[TimeControl "180+1"]
[WhiteFideId "1174460"]
[BlackFideId "24162450"]
[WhiteElo "2630"]
[BlackElo "2343"]
[WhiteTeam "POL"]
[BlackTeam "RUS"]
[WhiteClock "0:00:08"]
[BlackClock "0:00:16"]

1. d4 {[%clk 0:03:00]}  Nf6 {[%clk 0:02:59]} 2. c4 {[%clk 0:03:00]}  g6 {[%clk 0:03:00]} 3. Nf3 {[%clk 0:02:59]}  Bg7 {[%clk 0:03:00]} 4. g3 {[%clk 0:02:59]}  O-O {[%clk 0:03:00]} 5. Bg2 {[%clk 0:02:59]}  d6 {[%clk 0:03:01]} 6. O-O {[%clk 0:02:59]}  c5 {[%clk 0:03:01]} 7. Nc3 {[%clk 0:02:58]}  Nc6 {[%clk 0:03:01]} 8. d5 {[%clk 0:02:47]}  Na5 {[%clk 0:03:01]} 9. Nd2 {[%clk 0:02:47]}  a6 {[%clk 0:03:00]} 10. Qc2 {[%clk 0:02:44]}  Rb8 {[%clk 0:03:00]} 11. b3 {[%clk 0:02:38]}  b5 {[%clk 0:02:57]} 12. Bb2 {[%clk 0:02:25]}  e5 {[%clk 0:02:56]} 13. dxe6 {[%clk 0:02:18]}  Bxe6 {[%clk 0:02:52]} 14. cxb5 {[%clk 0:02:18]}  axb5 {[%clk 0:02:51]} 15. Rfd1 {[%clk 0:02:18]}  d5 {[%clk 0:02:45]} 16. Rac1 {[%clk 0:01:52]}  Qe7 {[%clk 0:02:16]} 17. e4 {[%clk 0:01:42]}  d4 {[%clk 0:02:11]} 18. Nd5 {[%clk 0:01:42]}  Bxd5 {[%clk 0:02:09]} 19. exd5 {[%clk 0:01:43]}  Nb7 {[%clk 0:02:06]} 20. d6 {[%clk 0:01:17]}  Qxd6 {[%clk 0:02:05]} 21. Bxb7 {[%clk 0:01:18]}  Rxb7 {[%clk 0:02:06]} 22. Qxc5 {[%clk 0:01:18]}  Rd7 {[%clk 0:01:50]} 23. Qxd6 {[%clk 0:01:18]}  Rxd6 {[%clk 0:01:51]} 24. Ba3 {[%clk 0:01:18]}  Rdd8 {[%clk 0:01:47]} 25. Bxf8 {[%clk 0:01:17]}  Bxf8 {[%clk 0:01:48]} 26. a4 {[%clk 0:01:11]}  bxa4 {[%clk 0:01:48]} 27. bxa4 {[%clk 0:01:12]}  Bh6 {[%clk 0:01:48]} 28. a5 {[%clk 0:01:07]}  Nd5 {[%clk 0:01:45]} 29. f4 {[%clk 0:00:51]}  Nc3 {[%clk 0:01:41]} 30. Re1 {[%clk 0:00:51]}  Bf8 {[%clk 0:01:40]} 31. a6 {[%clk 0:00:46]}  Ra8 {[%clk 0:01:39]} 32. Ra1 {[%clk 0:00:46]}  d3 {[%clk 0:01:31]} 33. Kg2 {[%clk 0:00:45]}  Bc5 {[%clk 0:01:30]} 34. Ne4 {[%clk 0:00:35]}  Bd4 {[%clk 0:01:26]} 35. Ra3 {[%clk 0:00:22]}  Nxe4 {[%clk 0:01:10]} 36. Rxe4 {[%clk 0:00:22]}  Bc5 {[%clk 0:01:10]} 37. Rxd3 {[%clk 0:00:16]}  Rxa6 {[%clk 0:01:10]} 38. Re2 {[%clk 0:00:17]}  Kg7 {[%clk 0:01:10]} 39. Rc2 {[%clk 0:00:16]}  Be7 {[%clk 0:01:08]} 40. Rd7 {[%clk 0:00:17]}  Bd6 {[%clk 0:01:03]} 41. Rb2 {[%clk 0:00:15]}  Bc5 {[%clk 0:00:57]} 42. Rbb7 {[%clk 0:00:15]}  Rf6 {[%clk 0:00:56]} 43. Kf3 {[%clk 0:00:14]}  h5 {[%clk 0:00:54]} 44. h3 {[%clk 0:00:14]}  Ba3 {[%clk 0:00:52]} 45. Rb3 {[%clk 0:00:14]}  Bc1 {[%clk 0:00:52]} 46. Rd1 {[%clk 0:00:12]}  Rc6 {[%clk 0:00:51]} 47. Rdd3 {[%clk 0:00:09]}  Re6 {[%clk 0:00:42]} 48. h4 {[%clk 0:00:07]}  Re1 {[%clk 0:00:40]} 49. Rd7 {[%clk 0:00:07]}  Re6 {[%clk 0:00:19]} 50. Rd1 {[%clk 0:00:04]}  Rc6 {[%clk 0:00:16]} 51. Rd7 {[%clk 0:00:05]}  Rf6 {[%clk 0:00:15]} 52. Rbb7 {[%clk 0:00:05]}  Ba3 {[%clk 0:00:14]} 53. Rb3 {[%clk 0:00:05]}  Bf8 {[%clk 0:00:14]} 54. Rc7 {[%clk 0:00:04]}  Bd6 {[%clk 0:00:15]} 55. Ra7 {[%clk 0:00:05]}  Bc5 {[%clk 0:00:15]} 56. Rd7 {[%clk 0:00:05]}  Re6 {[%clk 0:00:15]} 57. Rbb7 {[%clk 0:00:05]}  Re3+ {[%clk 0:00:15]} 58. Kg2 {[%clk 0:00:05]}  Re2+ {[%clk 0:00:16]} 59. Kf1 {[%clk 0:00:05]}  Rf2+ {[%clk 0:00:15]} 60. Ke1 {[%clk 0:00:06]}  Rh2 {[%clk 0:00:16]} 61. Rxf7+ {[%clk 0:00:06]}  Kg8 {[%clk 0:00:16]} 62. Rg7+ {[%clk 0:00:06]}  Kf8 {[%clk 0:00:16]} 63. Rgc7 {[%clk 0:00:07]}  Be7 {[%clk 0:00:16]} 64. Rc8+ {[%clk 0:00:07]}  Kf7 {[%clk 0:00:16]} 65. Rcc7 {[%clk 0:00:08]}  Rh1+ {[%clk 0:00:17]} 66. Ke2 {[%clk 0:00:08]}  Rb1 {[%clk 0:00:16]} 67. Rxe7+ {[%clk 0:00:07]}  Kf6 {[%clk 0:00:16]} 68. Rxb1 {[%clk 0:00:07]}  Kxe7 {[%clk 0:00:16]} 69. Rb6 {[%clk 0:00:08]} 1-0

[Event "December 12 Early 2023"]
[Site "https://www.chess.com"]
[Date "2023.12.12"]
[Round "1"]
[White "Manukyan, Sargis A."]
[Black "Franchini, Gabriele"]
[Result "1-0"]
[Board "153"]
[TimeControl "180+1"]
[WhiteFideId "13303970"]
[BlackFideId "806790"]
[WhiteElo "2626"]
[BlackElo "2335"]
[WhiteTeam "ARM"]
[BlackTeam "ITA"]
[WhiteClock "0:00:18"]
[BlackClock "0:00:02"]

1. d4 {[%clk 0:03:00]}  d5 {[%clk 0:02:59]} 2. c4 {[%clk 0:03:00]}  e6 {[%clk 0:03:00]} 3. Nc3 {[%clk 0:03:00]}  Nf6 {[%clk 0:03:00]} 4. Bg5 {[%clk 0:02:58]}  Be7 {[%clk 0:02:59]} 5. Nf3 {[%clk 0:02:58]}  h6 {[%clk 0:02:59]} 6. Bh4 {[%clk 0:02:58]}  c6 {[%clk 0:02:59]} 7. e3 {[%clk 0:02:58]}  O-O {[%clk 0:02:59]} 8. cxd5 {[%clk 0:02:57]}  exd5 {[%clk 0:02:58]} 9. Qc2 {[%clk 0:02:54]}  Re8 {[%clk 0:02:57]} 10. Bd3 {[%clk 0:02:53]}  Ne4 {[%clk 0:02:57]} 11. Bxe7 {[%clk 0:02:52]}  Qxe7 {[%clk 0:02:57]} 12. O-O {[%clk 0:02:52]}  Bf5 {[%clk 0:02:50]} 13. Ne5 {[%clk 0:02:49]}  Nd7 {[%clk 0:01:53]} 14. Nxe4 {[%clk 0:02:48]}  dxe4 {[%clk 0:01:40]} 15. Bc4 {[%clk 0:02:33]}  Nxe5 {[%clk 0:01:39]} 16. dxe5 {[%clk 0:02:33]}  Qxe5 {[%clk 0:01:39]} 17. Qb3 {[%clk 0:02:32]}  Qf6 {[%clk 0:01:22]} 18. Qxb7 {[%clk 0:02:19]}  a5 {[%clk 0:01:09]} 19. b3 {[%clk 0:02:09]}  h5 {[%clk 0:01:06]} 20. Qc7 {[%clk 0:02:08]}  h4 {[%clk 0:01:03]} 21. Rad1 {[%clk 0:01:54]}  h3 {[%clk 0:01:01]} 22. Rd6 {[%clk 0:01:27]}  Be6 {[%clk 0:00:48]} 23. Qxc6 {[%clk 0:01:03]}  Qg5 {[%clk 0:00:36]} 24. g3 {[%clk 0:01:01]}  Qg4 {[%clk 0:00:31]} 25. Bxe6 {[%clk 0:00:43]}  fxe6 {[%clk 0:00:28]} 26. Rd4 {[%clk 0:00:41]}  Rac8 {[%clk 0:00:18]} 27. Qxe4 {[%clk 0:00:41]}  Qe2 {[%clk 0:00:19]} 28. Rc4 {[%clk 0:00:35]}  Rcd8 {[%clk 0:00:18]} 29. Qg4 {[%clk 0:00:28]}  Qxa2 {[%clk 0:00:13]} 30. Rc7 {[%clk 0:00:23]}  Qb2 {[%clk 0:00:13]} 31. Qxh3 {[%clk 0:00:22]}  Qxb3 {[%clk 0:00:12]} 32. Qh5 {[%clk 0:00:19]}  Rf8 {[%clk 0:00:11]} 33. Qg6 {[%clk 0:00:18]}  Qb2 {[%clk 0:00:09]} 34. Qxe6+ {[%clk 0:00:19]}  Kh8 {[%clk 0:00:09]} 35. Qh3+ {[%clk 0:00:17]}  Kg8 {[%clk 0:00:09]} 36. Qg4 {[%clk 0:00:18]}  Qe5 {[%clk 0:00:07]} 37. Qc4+ {[%clk 0:00:18]}  Kh8 {[%clk 0:00:07]} 38. Rc5 {[%clk 0:00:18]}  Qe7 {[%clk 0:00:02]} 39. Rh5# {[%clk 0:00:18]} 1-0